Cogmind - Beta 12 @@@ ROGUE MODE // 2023.09.30 @ 14:06:15 Player: Whitebacon Result: Self-destructed Performance ------------- Evolutions (4) 2000 Regions Visited (7) 1400 Robots Destroyed (98) 490 Value Destroyed (2429) 2429 Prototype IDs (8) 160 Alien Tech Used (0) 0 Bonus (314) 314 TOTAL SCORE: 6793 Bonus ------- High Alert Combat Kills 36 Follower Combat Kills 88 Entered Garrisons 200 Friendly Fire -10 Cogmind --------- Core Integrity 758/850 Matter 300/300 Energy 310/310 System Corruption 0% Temperature Cool (0) Movement Rolling (125) Ox3 Location -6/Garrison Parts ------- > --- POWER (1) -------- Fission Core > --- PROPULSION (2) --- Wheel Wheel > --- UTILITY (9) ------ Advanced Heat Sink High-capacity Storage Unit Trap Scanner Improved Signal Interpreter Hardened Medium Armor Plating Hacking Suite Hacking Suite System Shield System Shield > --- WEAPON (3) ------- Magnetic Acceleration Cannon Magnetic Acceleration Cannon Mace > --- INVENTORY (20) --- Cooled Ion Engine Wheel Wheel Small Battery (100) Small Battery (100) Compact Matter Pod (150) Advanced Sensor Array Advanced Sensor Array Transmission Jammer Hardened Medium Armor Plating Hardened Medium Armor Plating Hardened Medium Armor Plating Hardened Medium Armor Plating System Shield System Restoration Module Heavy EM Pulse Gun EM Shotgun Improved EM Shotgun Shock Bomb Launcher Improved Datajack Peak State ------------ > --- POWER ------------ Fission Core > --- PROPULSION ------- Wheel Wheel > --- UTILITY ---------- High-capacity Storage Unit Trap Scanner Advanced Sensor Array Improved Signal Interpreter Hacking Suite Hacking Suite System Shield System Shield System Restoration Module > --- WEAPON ----------- Magnetic Acceleration Cannon Magnetic Acceleration Cannon Mace > --- INVENTORY -------- Cooled Ion Engine Wheel Wheel Heat Sink Small Battery Small Battery Compact Matter Pod Advanced Sensor Array Transmission Jammer Hardened Medium Armor Plating Hardened Medium Armor Plating Hardened Medium Armor Plating Hardened Medium Armor Plating System Shield Heavy EM Pulse Gun EM Shotgun Improved EM Shotgun Shock Bomb Launcher Improved Datajack [Rating: 51] Favorites ----------- Power Cooled Ion Engine Engine Cooled Ion Engine Power Core Fission Core Propulsion Compact Wheel Treads Medium Treads Wheel Compact Wheel Utility Heat Sink Device Heat Sink Storage High-capacity Storage Unit Processor Improved Signal Interpreter Hackware System Shield Protection Hardened Medium Armor Plating Weapon EM Pulse Gun Energy Gun EM Pulse Gun Energy Cannon Advanced Beam Cannon Ballistic Gun Light Assault Rifle Ballistic Cannon Magnetic Acceleration Cannon Launcher Shock Bomb Launcher Impact Weapon Mace Build | -11 -10 -10 -9 -8 -7 -6 -6 ------- Run | Jun Mat Min Mat Mat Fac Fac Gar Slots Evolved 8 | . . . 2 2 2 2 . Power . | . . . . . . . . Propulsion . | . . . . . . . . Utility 7 | . . . 2 2 2 1 . Weapon 1 | . . . . . . 1 . Parts Attached 105 | 7 4 . 33 19 18 22 2 Power 11 | 1 . . 5 2 2 1 . Engine 10 | 1 . . 5 2 2 . . Core 1 | . . . . . . 1 . Reactor . | . . . . . . . . Propulsion 20 | 2 . . 10 3 . 5 . Treads 1 | . . . . . . 1 . Leg . | . . . . . . . . Wheel 19 | 2 . . 10 3 . 4 . Hover . | . . . . . . . . Flight . | . . . . . . . . Utility 42 | 1 3 . 11 4 12 9 2 Device 19 | . . . 5 1 8 4 1 Storage 4 | 1 2 . . 1 . . . Processor 2 | . . . 1 . 1 . . Hackware 4 | . . . . . . 4 . Protection 13 | . 1 . 5 2 3 1 1 Artifact . | . . . . . . . . Weapon 32 | 3 1 . 7 10 4 7 . Energy Gun 19 | 3 1 . 6 4 3 2 . Energy Cannon 1 | . . . . 1 . . . Ballistic Gun 2 | . . . . 2 . . . Ballistic Cannon 2 | . . . . . . 2 . Launcher 3 | . . . . 2 . 1 . Special Weapon . | . . . . . . . . Impact Weapon 5 | . . . 1 1 1 2 . Slashing Weapon . | . . . . . . . . Piercing Weapon . | . . . . . . . . Special Melee Weapon . | . . . . . . . . Unidentified Prototypes 5 | . . . 1 2 2 . . Corrupted Parts 1 | . . . . . 1 . . System Corruption 1 | . . . . . 1 . . Parts Lost 15 | . . . 7 1 4 3 . Power 2 | . . . 1 . 1 . . Propulsion 1 | . . . . . . 1 . Utility 6 | . . . 3 . 3 . . Weapon 6 | . . . 3 1 . 2 . Highest Loss Streak 4 | . . . 4 1 2 3 . To Critical Strikes . | . . . . . . . . Average Slot Usage (%) 97 | . 88 100 96 99 98 98 100 Engine 8 | . 14 14 10 9 6 5 . Wheel 18 | . 28 28 21 18 15 12 13 Device 20 | . . . 18 18 33 20 13 Storage 9 | . 14 14 11 9 7 6 6 Processor 3 | . . . 2 . 5 6 6 Hackware 4 | . . . . . . 22 26 Protection 10 | . 4 14 10 26 11 1 6 Energy Gun 15 | . 27 28 15 10 14 13 . Impact Weapon 2 | . . . 5 . . 2 6 Naked Turns . | . . . . . . . . Heaviest Build 88 | 14 56 56 63 82 88 83 79 Greatest Support 32 | 26 26 26 32 32 32 32 20 Greatest Overweight (x) 4 | . 2 2 4 4 2 4 3 Average Overweight (x) 1 | . 1 2 2 2 2 1 3 Largest Inventory Capacity 20 | 8 20 20 20 20 20 20 20 Average Capacity 19 | 7 17 20 20 20 20 20 20 Most Carried 20 | 5 15 14 15 19 20 19 20 Average Carried 14 | 1 8 14 11 15 18 15 19 Final Capacity 20 | 8 20 20 20 20 20 20 20 Final Carried 20 | 1 14 14 15 19 17 19 20 Class Distribution -------------------- 39% | Scavenger-Mutant 26% | Mutant 13% | Scavenger-Skirmisher 6% | Hacker-Mutant 6% | Hacker-Skirmisher 4% | Hacker-Assassin Dominant Class ---------------- Mutant | -10/Materials Mutant | -10/Mines Scavenger-Mutant | -9/Materials Scavenger-Mutant | -8/Materials Scavenger-Skirmisher | -7/Factory Hacker-Skirmisher | -6/Factory Hacker-Mutant | -6/Garrison Resources | -11 -10 -10 -9 -8 -7 -6 -6 ----------- Run | Jun Mat Min Mat Mat Fac Fac Gar Matter Collected 2087 | 225 185 . 470 637 160 251 159 Remotely . | . . . . . . . . Salvage Created 3793 | . 449 . 1077 744 1065 362 96 Parts 232 | . 40 . 85 16 53 33 5 Haulers Intercepted 7 | . 1 . 2 1 2 1 . Recyclers Shooed 7 | . 1 . 4 1 1 . . Parts Field Recycled . | . . . . . . . . Retrieved Matter . | . . . . . . . . Parts Self-Destructed . | . . . . . . . . Prevented . | . . . . . . . . Kills | -11 -10 -10 -9 -8 -7 -6 -6 ------- Run | Jun Mat Min Mat Mat Fac Fac Gar Combat Hostiles Destroyed 53 | . 9 . 20 11 7 3 3 Melee 1 | . . . 1 . . . . Guns 36 | . 9 . 16 6 5 . . Cannons 4 | . . . . . . 1 3 AOE 10 | . . . 2 5 1 2 . Classes Destroyed 14 | . 6 . 4 1 2 1 . Worker 5 | . . . . . 3 2 . Builder 10 | . . . 6 . 1 3 . Hauler 7 | . 1 . 2 1 2 1 . Recycler 12 | . . . 2 3 7 . . Mechanic 2 | . 1 . 1 . . . . Operator 1 | . 1 . . . . . . Watcher 8 | . 2 . 1 . 4 1 . Swarmer 20 | . 3 . 11 . 3 2 1 Grunt 20 | . 6 . 3 7 2 . 2 Brawler 1 | . . . 1 . . . . Duelist 1 | . . . . 1 . . . Sentry 8 | . . . 5 3 . . . Hunter 2 | . . . . . 2 . . Programmer 1 | . . . . . . 1 . Best Kill Streak 9 | . 4 . 6 4 9 5 2 Combat Bots Only 5 | . 4 . 5 3 3 2 2 Max Kills in Single Turn 7 | . 1 . 3 2 7 3 1 Gunslinging 1 | . . . 1 . 1 . . Exploded 2 | . . . 1 2 1 1 . Melee 1 | . . . 1 . . . . Uniques/NPCs Destroyed . | . . . . . . . . Combat | -11 -10 -10 -9 -8 -7 -6 -6 -------- Run | Jun Mat Min Mat Mat Fac Fac Gar Damage Taken 2634 | . 115 . 1032 687 438 214 148 Core 412 | . 31 . 215 43 31 63 29 Absorbed by Shields 8 | . . . . . 8 . . Regen/Repaired (Parts) 162 | . 41 . 72 . 49 . . Core Remaining (%) 84 | 100 . 87 46 92 95 . . Volleys Fired 185 | . 26 . 59 49 30 15 6 Largest 3 | . 2 . 2 2 2 3 2 Hottest 155 | . 80 . 80 65 110 155 106 Shots Fired 328 | . 52 . 90 86 60 28 12 Gun 294 | . 52 . 90 77 60 15 . Cannon 18 | . . . . . . 6 12 Launcher 16 | . . . . 9 . 7 . Special . | . . . . . . . . Kinetic 61 | . . . . 43 . 6 12 Thermal . | . . . . . . . . Explosive 9 | . . . . 9 . . . Electromagnetic 258 | . 52 . 90 34 60 22 . Robot Hit Streak 15 | . 9 . 11 15 15 5 3 Robot Miss Streak 3 | . 2 . 3 3 3 2 1 Penetration Max . | . . . . . . . . Secondary Targets 4 | . 2 . 1 . 1 . . Max Gunslinging Chain 1 | . 1 . 1 . 1 . . Shots Hit Robots 246 | . 35 . 84 66 42 11 8 Core Hits 157 | . 19 . 44 41 37 13 3 Critical Kills . | . . . . . . . . Critical Parts Destroyed 1 | . . . 1 . . . . Critical Strikes 4 | . 2 . 1 . . . 1 Blast 1 | . . . . . . . 1 Corrupt 2 | . 2 . . . . . . Smash 1 | . . . 1 . . . . Melee Attacks 29 | . . . 19 . 3 5 2 Impact 29 | . . . 19 . 3 5 2 Slashing . | . . . . . . . . Piercing . | . . . . . . . . Sneak Attacks 1 | . . . . . 1 . . Combat Hostiles . | . . . . . . . . Follow-up Attacks . | . . . . . . . . Damage Inflicted 5753 | . 600 . 1443 1364 1510 560 276 Guns 2929 | . 467 . 878 611 811 162 . Cannons 370 | . . . . . . 94 276 Explosions 2054 | . 133 . 254 753 610 304 . Melee 400 | . . . 311 . 89 . . Ramming . | . . . . . . . . Kinetic 588 | . . . . 218 . 94 276 Thermal 973 | . 133 . 254 40 471 75 . Explosive 713 | . . . . 713 . . . Electromagnetic 3079 | . 467 . 878 393 950 391 . Impact 400 | . . . 311 . 89 . . Slashing . | . . . . . . . . Piercing . | . . . . . . . . Highest Corruption 3 | . . . 3 1 2 2 1 Average Corruption 2 | . . . 3 1 1 1 1 Corruption Purged 4 | . . . . . 2 1 1 Corruption Blocked . | . . . . . . . . Effects 24 | . . . 18 1 3 1 1 Message Errors 10 | . . . 8 1 1 . . Matter Fused 5 | . . . 3 . 1 . 1 Heat Flow Errors 3 | . . . 2 . 1 . . Energy Discharges 1 | . . . 1 . . . . Parts Rejected 1 | . . . . . . 1 . Data Loss (minor) 3 | . . . 3 . . . . Data Loss (major) 1 | . . . 1 . . . . Overload Shots . | . . . . . . . . Overflow Damage 207 | . 12 . 37 . 124 . 34 Projectiles 34 | . . . . . . . 34 Explosions 97 | . 12 . 10 . 75 . . Melee 76 | . . . 27 . 49 . . Knockbacks 4 | . . . . . 1 . 3 Impact 1 | . . . . . 1 . . Kinetic 3 | . . . . . . . 3 Secondary . | . . . . . . . . Self-Inflicted Damage 140 | . . . 63 14 63 . . Shots 7 | . . . 4 1 2 . . Rammed . | . . . . . . . . Targets Rammed . | . . . . . . . . Kicked . | . . . . . . . . Crushed . | . . . . . . . . Highest Temperature 227 | . 150 . 227 58 183 102 75 Average Temperature 32 | . 44 . 49 18 24 34 36 Received Heat Transfer 714 | . 30 . 333 279 45 . 27 Siege Activations . | . . . . . . . . Robots Corrupted 4 | . . . 2 . 1 1 . Combat Hostiles 2 | . . . 1 . 1 . . Parts Fried 18 | . 1 . 3 5 8 1 . Impact Corruptions 3 | . . . 1 . 2 . . Robots Melted . | . . . . . . . . Combat Hostiles . | . . . . . . . . Parts Melted . | . . . . . . . . Heat Transferred 1000 | . 200 . 350 50 300 100 . Parts Sabotaged . | . . . . . . . . Parts Stolen . | . . . . . . . . Parts Stripped . | . . . . . . . . Power Chain Reactions 13 | . 3 . 6 1 2 1 . Missiles Intercepted . | . . . . . . . . Alert | -11 -10 -10 -9 -8 -7 -6 -6 ------- Run | Jun Mat Min Mat Mat Fac Fac Gar Peak Influence 490 | . 273 40 415 490 381 137 240 Initial 165 | . . 40 15 165 155 120 65 Average 192 | . 151 40 222 337 179 94 129 Maximum Alert Level 2 | . 1 . 2 2 1 . 1 Low Security (%) 52 | 100 60 100 35 5 55 100 95 Level 1 44 | . 39 . 63 76 45 . 4 Level 2 2 | . . . 1 17 . . . Level 3 . | . . . . . . . . Level 4 . | . . . . . . . . Level 5 . | . . . . . . . . High Security . | . . . . . . . . Max Security . | . . . . . . . . Squads Dispatched 4 | . 1 . 1 . 1 1 . Investigation . | . . . . . . . . Extermination 2 | . . . . . 1 1 . Reinforcement 2 | . 1 . 1 . . . . Assault . | . . . . . . . . Garrison . | . . . . . . . . Intercept . | . . . . . . . . Searches Triggered . | . . . . . . . . Construction Impeded . | . . . . . . . . Haulers Reinforced . | . . . . . . . . Active Scanning Responses . | . . . . . . . . Cargo Convoy Interrupts . | . . . . . . . . Stealth | -11 -10 -10 -9 -8 -7 -6 -6 --------- Run | Jun Mat Min Mat Mat Fac Fac Gar Distress Signals 5 | . 1 . 2 1 1 . . Communications Jammed . | . . . . . . . . Distress Signals . | . . . . . . . . Times Spotted 85 | . 16 . 27 12 12 5 13 Peak Tracking Total 7 | . 4 . 5 3 4 3 7 Tactical Retreats 4 | . . . 2 1 . 1 . Traps | -11 -10 -10 -9 -8 -7 -6 -6 ------- Run | Jun Mat Min Mat Mat Fac Fac Gar Traps Triggered 7 | . . . 3 1 2 . 1 Indirectly . | . . . . . . . . Trap Hack Attempts . | . . . . . . . . Triggered . | . . . . . . . . Disarmed . | . . . . . . . . Reprogrammed . | . . . . . . . . Reused . | . . . . . . . . Traps Extracted . | . . . . . . . . Installed . | . . . . . . . . Triggered . | . . . . . . . . Machines | -11 -10 -10 -9 -8 -7 -6 -6 ---------- Run | Jun Mat Min Mat Mat Fac Fac Gar Machines Disabled 11 | . . . 1 . 9 . 1 Max in Single Turn 7 | . . . 1 . 7 . 1 Garrison Relay 1 | . . . . . . . 1 Machines Repaired . | . . . . . . . . Machines Sabotaged . | . . . . . . . . Overloaded Fab Kills . | . . . . . . . . Hacking | -11 -10 -10 -9 -8 -7 -6 -6 --------- Run | Jun Mat Min Mat Mat Fac Fac Gar Machines Accessed 19 | . 3 . 9 2 2 2 1 Terminals 9 | . 2 . 5 1 . . 1 Fabricators 1 | . . . . . . 1 . Repair Stations 4 | . 1 . 2 . 1 . . Recycling Units . | . . . . . . . . Scanalyzers 4 | . . . 2 1 1 . . Garrison Access 1 | . . . . . . 1 . Total Hacks 56 | . 9 . 28 9 7 2 1 Successful 40 | . 6 . 19 6 6 2 1 Failed 16 | . 3 . 9 3 1 . . Catastrophic 1 | . . . 1 . . . . Database Lockouts . | . . . . . . . . Manual 17 | . 6 . 10 1 . . . Terminals 30 | . 7 . 18 4 . . 1 Fabricators 1 | . . . . . . 1 . Repair Stations 10 | . 2 . 6 . 2 . . Recycling Units . | . . . . . . . . Scanalyzers 14 | . . . 4 5 5 . . Garrison Access 1 | . . . . . . 1 . Terminal Hacks 9 | . 2 . 5 1 . . 1 Robot Analysis 1 | . . . . 1 . . . Prototype ID Bank 2 | . 1 . 1 . . . . Open Door 1 | . . . . . . . 1 Emergency Access Points 1 | . . . 1 . . . . Locate Traps 1 | . . . 1 . . . . Zone Layout 3 | . 1 . 2 . . . . Fabricator Hacks 1 | . . . . . . 1 . Build 1 | . . . . . . 1 . Repair Station Hacks 10 | . 2 . 6 . 2 . . Scan Component 5 | . 1 . 3 . 1 . . Repair 5 | . 1 . 3 . 1 . . Recycling Unit Hacks . | . . . . . . . . Scanalyzer 12 | . . . 4 4 4 . . Insert Component 6 | . . . 2 2 2 . . Analyze 6 | . . . 2 2 2 . . Garrison Access Hacks 1 | . . . . . . 1 . Unlock Access 1 | . . . . . . 1 . Unauthorized Hacks 7 | . 2 . 4 1 . . . Terminals 7 | . 2 . 4 1 . . . Botnet 7 | . 2 . 4 1 . . . Fabricators . | . . . . . . . . Repair Stations . | . . . . . . . . Recycling Units . | . . . . . . . . Scanalyzers . | . . . . . . . . Garrison Access . | . . . . . . . . Data Cores Recovered . | . . . . . . . . Used . | . . . . . . . . Hacking Detections 16 | . 3 . 8 2 2 1 . Full Trace Events . | . . . . . . . . Feedback Events . | . . . . . . . . Feedback Blocked . | . . . . . . . . Robot Schematics Acquired . | . . . . . . . . Robots Built . | . . . . . . . . Authchips . | . . . . . . . . Time . | . . . . . . . . Total Robot Build Rating . | . . . . . . . . Part Schematics Acquired 6 | . . . 2 2 2 . . Parts Built 2 | . . . . . . 2 . Authchips . | . . . . . . . . Time 95 | . . . . . . 95 . Total Part Build Rating 10 | . . . . . . 10 . Parts Repaired 5 | . 1 . 3 . 1 . . Time 126 | . 26 . 84 . 16 . . Parts Recycled . | . . . . . . . . Recycled Matter . | . . . . . . . . Retrieved Matter . | . . . . . . . . Retrieved Components . | . . . . . . . . Parts Scanalyzed 6 | . . . 2 2 2 . . Part Schematics Acquired 6 | . . . 2 2 2 . . Parts Damaged . | . . . . . . . . Bothacking | -11 -10 -10 -9 -8 -7 -6 -6 ------------ Run | Jun Mat Min Mat Mat Fac Fac Gar Used RIF Installer . | . . . . . . . . Robots Hacked . | . . . . . . . . Non-combat . | . . . . . . . . Combat . | . . . . . . . . Robot Hacks Applied . | . . . . . . . . Relay Couplers Released 3 | . . . . . . . 3 Machine Destruction 3 | . . . . . . . 3 Fabnet Peak Effective % . | . . . . . . . . Robots Rewired 4 | . 1 . . . . . 3 Allies Hacked . | . . . . . . . . Hacks Repelled . | . . . . . . . . Allies | -11 -10 -10 -9 -8 -7 -6 -6 -------- Run | Jun Mat Min Mat Mat Fac Fac Gar Total Allies 4 | . 1 . . . . . 3 Largest Group 3 | . 1 1 1 . . . 3 Highest-Rated Group 121 | . 16 16 16 . . . 121 Highest-Rated Ally 46 | . 16 16 16 . . . 46 Total Orders . | . . . . . . . . Ally Attacks 40 | . . . 12 . . . 28 Total Damage 672 | . . . 117 . . . 555 Kills 7 | . . . 4 . . . 3 Allies Corrupted . | . . . . . . . . Allies Melted . | . . . . . . . . Intel | -11 -10 -10 -9 -8 -7 -6 -6 ------- Run | Jun Mat Min Mat Mat Fac Fac Gar Robot Analysis Total 1 | . . . . 1 . . . Derelict Logs Recovered . | . . . . . . . . Drone Launches . | . . . . . . . . Drone Recoveries . | . . . . . . . . Exploration | -11 -10 -10 -9 -8 -7 -6 -6 ------------- Run | Jun Mat Min Mat Mat Fac Fac Gar Turns Passed 4211 | 46 469 40 1161 601 1080 652 162 Spaces Moved 2223 | 40 285 27 602 289 584 309 87 Core 10 | 10 . . . . . . . Treads . | . . . . . . . . Legs . | . . . . . . . . Wheels 2213 | 30 285 27 602 289 584 309 87 Hover . | . . . . . . . . Flight . | . . . . . . . . Fastest Speed 50 | 50 90 120 105 120 130 115 125 Average Speed 121 | 80 106 120 118 127 130 120 125 Slowest Speed 160 | 90 120 120 140 140 130 160 125 Overloaded Moves . | . . . . . . . . Propulsion Burnouts . | . . . . . . . . Robots Hopped . | . . . . . . . . Cave-ins Triggered . | . . . . . . . . Exploration Rate (%) 22 | 3 48 10 50 27 17 10 13 Regions Visited 7 Branch Regions 1 Pre-discovered Areas . | . . . . . . . . Known Exits Taken 2 | . . . . . 1 1 . Unknown Exits Taken 5 | 1 1 1 1 1 . . . Scrap Searched . | . . . . . . . . Spaces Dug 7 | . . . 3 . 1 3 . Terrain Destroyed 120 | . 6 . 19 62 27 6 . Melee 7 | . . . 3 . 1 3 . Projectile 1 | . . . . . . 1 . AOE 112 | . 6 . 16 62 26 2 . Terrain Rammed . | . . . . . . . . Walls Destroyed . | . . . . . . . . Machines Disabled . | . . . . . . . . Actions | -11 -10 -10 -9 -8 -7 -6 -6 --------- Run | Jun Mat Min Mat Mat Fac Fac Gar Total 3379 | 53 400 34 926 443 845 553 125 Wait 626 | . 52 8 163 62 152 177 12 Move 2216 | 39 284 26 601 288 583 308 87 Hop . | . . . . . . . . Pick Up 124 | 7 21 . 36 16 26 16 2 Fast Attach . | . . . . . . . . Attach 54 | 6 2 . 21 6 8 10 1 Detach 3 | . . . . . . 2 1 Swap 52 | 1 2 . 12 13 11 12 1 Drop 60 | . 6 . 15 9 21 8 1 Fire 185 | . 26 . 59 49 30 15 6 Melee 29 | . . . 19 . 3 5 2 Ram . | . . . . . . . . Kick . | . . . . . . . . Crush . | . . . . . . . . Escape Stasis 8 | . . . . . 8 . . Rewire 22 | . 7 . . . 3 . 12 Trap . | . . . . . . . . Miscellaneous . | . . . . . . . . Route ------- -11/Junkyard -10/Materials -10/Mines -9/Materials (discovered 2 exits: *Mat x2) -8/Materials -7/Factory -6/Factory -6/Garrison History --------- Turn | Location | Event 23 | -11/Junkyard | Discovered new exit (range 16) 47 | -11/Junkyard | Entered Materials 117 | -10/Materials | Discovered new exit (range 8) 311 | -10/Materials | Build established: Mutant 432 | -10/Materials | Repaired EM Pulse Gun 516 | -10/Materials | Entered Mines 516 | -10/Mines | Accompanied by 1 ally 532 | -10/Mines | Discovered new exit (range 9) 540 | -10/Mines | Received a Rocket Launcher from a helpful Derelict 556 | -10/Mines | Entered Materials 556 | -9/Materials | Accompanied by 1 ally 556 | -9/Materials | Evolved 2 slots: Utility x2 629 | -9/Materials | Repaired Com. Wheel 1093 | -9/Materials | Discovered new exit (range 16) 1239 | -9/Materials | Lost 4 parts (1p1u2w) 1276 | -9/Materials | Build established: Scavenger-Mutant 1343 | -9/Materials | Core integrity fell below 50% 1448 | -9/Materials | Repaired EM Shotgun 1476 | -9/Materials | Repaired Structural Scanner 1674 | -9/Materials | Discovered new exit (range 16) 1717 | -9/Materials | Entered another Materials area 1717 | -8/Materials | Evolved 2 slots: Utility x2 2094 | -8/Materials | Discovered new exit (range 14) 2318 | -8/Materials | Entered Factory 2318 | -7/Factory | Evolved 2 slots: Utility x2 2505 | -7/Factory | Repaired EM Shotgun 2828 | -7/Factory | Build established: Scavenger-Skirmisher 3382 | -7/Factory | Discovered new exit (range 7) 3390 | -7/Factory | Identified exit to Factory 3398 | -7/Factory | Entered another Factory area 3398 | -6/Factory | Evolved 2 slots: Utility x1, Weapon x1 3590 | -6/Factory | Fabricated Imp. Gravmag System (x2) 3882 | -6/Factory | Lost 3 parts (1n2w) 4049 | -6/Factory | Identified exit to Garrison 4050 | -6/Factory | Entered Garrison 4150 | -6/Garrison | Triggered checkpoint 4205 | -6/Garrison | Garrison Relay disabled 4212 | -6/Garrison | Self-destructed Last Messages --------------- 04161_ S-27 Virus system corrupted by crushing effect. 04161_ S-27 Virus destroyed. 04164_ S-27 Virus knocked back. 04167_ S-27 Virus destroyed. 04170_ Destroyed VTOL Module. 04170_ S-27 Virus knocked back. 04174_ Acquired 60 matter. 04175_ S-27 Virus suffers critical hit (Burn). 04177_ 7Y-GI2(b) destroyed. 04179_ S-27 Virus destroyed. 04179_ Acquired 4 matter. 04192_ Acquired Hrd. Medium Armor Plating. 04204_ Triggered Alarm Trap. 04204_ An alarm sounds. 04205_ Garrison Relay disabled. 04205_ Relay Coupler [Sentry] tumbles out of relay unit. 04205_ Relay Coupler [Cutter] tumbles out of relay unit. 04205_ Relay Coupler [Hunter] tumbles out of relay unit. 04206_ JH-YKO(g) suffers critical hit (Destroy). 04206_ JH-YKO(g) destroyed. Map ----- +----------------------------------------------------+ | ????????????????????????????????? | | ????????????????????????????????? | | ????????????????????????????????? | | ????????????????????????????????? | | ???????################?????????? | | ???????# #?????????? | | ???????# #?????????? | | ???????# #?????????? | | ???????# ############?????????? | | ?#####?# #????????????????????? | | ?# #?# #????????????????????? | | ?#=! ### ##############???????? | | ?# # ???????? | | ?#[* ???????? | | ?# #T# ####""""#### ???????? | | ?####### #??????????# #??????? | | ???????# #??????????# ??????? | | ???????# #??????????# ??????? | | ???????# #??????????# ??????? | | ???????# #??????????# #??????? | | ???????# #??????????# s#??????? | | ???????# #??????????# ###????? | | ???????# #??????????# s#"#????? | | ???????# #??????????# !"#????? | | ???????# #??????????# ! #????? | | ???????# #??######??# @"#????? | | ######## #??# #??#ss#"#????? | | ####% ####! ###????? | | [ =[*% %*%%= #??????? | | *%%== %[= #??????? | | ##########################??????? | | ????????????????????????????????? | | ????????????????????????????????? | | ????????????????????????????????? | | ????????????????????????????????? | | ????????????????????????????????? | | ????????????????????????????????? | | ????????????????????????????????? | | ????????????????????????????????? | | ????????????????????????????????? | | ????????????????????????????????? | | ????????????????????????????????? | | ????????????????????????????????? | | ????????????????????????????????? | | ????????????????????????????????? | | ????????????????????????????????? | | ????????????????????????????????? | | ????????????????????????????????? | | ????????????????????????????????? | | ????????????????????????????????? | +----------------------------------------------------+ Best States ------------- Heat Dissipation 56 Energy Generation 23 Energy Capacity 310 Matter Stores 430 Matter Capacity 450 Sight Range 16 Robot Scan Range 16 Terrain Scan Density 10 Jamming Range 12 Additional Mass Support 6 Armor Coverage 675 Evasion (%) 50 Offensive Hacking 20 Defensive Hacking 20 Item Schematics ----------------- Med. Armor Plating | -9/Materials | Scanalyzed Cld. Ion Engine | -9/Materials | Scanalyzed System Shield | -8/Materials | Scanalyzed Com. Matter Pod | -8/Materials | Scanalyzed Hrd. Medium Armor Plating | -7/Factory | Scanalyzed Imp. EM Shotgun | -7/Factory | Scanalyzed Robot Schematics ------------------ None Fabricated ------------ Imp. Gravmag System | x2 | -6/Factory | Preloaded Alien Tech Used ----------------- None Achievements -------------- None Challenges ------------ None Game ------ Seed TachyonMetafiberMantle Manual? 0 Play Time 00:43:08 Cumulative 87.4 hours Start 2023.09.29 @ 12:51:33 End 2023.09.30 @ 14:06:15 Sessions 5 Manual Loads 0 Difficulty Rogue Special Mode None Game No. 161 Rogue 161 Adventurer 0 Explorer 0 Win Type - Total 0 Types 0/0/0/0/0/0/0/0/0 Lore% 41 Gallery% 54 Achievement% 38 Wizard Run 0 Options --------- ASCII 0 Keyboard 0 Movement Numpad Keybinds 0 Fullscreen 1 Font 12/Tallcaps Map View 83x54 Tactical HUD 1 Map Filters NONE Filters NONE Steam 1 RUN: 68f1f9c8-fa68-45eb-abbe-1b17dd8f0904